[Event "POL-chT 1 Liga 2019"]
[Site "Dzwirzyno"]
[Date "2019.09.14"]
[Round "8.16"]
[White "Sabuk, Piotr"]
[Black "Nurkiewicz, Maciej"]
[Result "1-0"]
[ECO "D24"]
[WhiteElo "2397"]
[BlackElo "2334"]
[Annotator "NA"]
[PlyCount "67"]
[EventDate "2019.09.07"]
[EventType "team-tourn"]
[EventCountry "POL"]
[SourceTitle "playchess.com"]
[Source "ChessBase"]
[SourceQuality "1"]
[TimeControl "40/5400+30:1800+30"]

1. d4 {[%emt 0:00:00]} d5 {[%emt 0:00:00]} 2. c4 {[%emt 0:00:00]} dxc4 {[%emt 0:00:00]} 3. Nf3 {[%emt 0:00:00]} Nf6 {[%emt 0:00:00]} 4. Nc3 {[%emt 0:00:00]} a6 {[%emt 0:11:01]} 5. e4 {[%emt 0:00:10]} b5 {[%emt 0:00:12]} 6. e5 {[%emt 0:00:31]} Nd5 {[%emt 0:00:12]} 7. a4 {[%emt 0:00:22]} Nxc3 {[%emt 0:03:57]} 8. bxc3 {[%emt 0:00:07]} Qd5 {[%emt 0:00:07]} 9. g3 {[%emt 0:00:44]} Bb7 {[%emt 0:01:07]} 10. Bg2 {[%emt 0:00:14]} Qd7 {[%emt 0:00:15]} 11. Ba3 {[%emt 0:00:38]} g6 {[%emt 0:00:45]} 12. O-O {[%emt 0:00:49]} Bg7 {[%emt 0:00:22]} 13. e6 {[%emt 0:01:36]} fxe6 {[%emt 0:00:47]} 14. Re1 {[%emt 0:00:47]} O-O {[%emt 0:33:54]} 15. Qe2 {[%emt 0:00:51]} Bd5 {[%emt 0:06:58]} 16. Ng5 {[%emt 0:02:12]} Bxg2 {[%emt 0:01:14]} 17. Kxg2 {[%emt 0:00:35]} Nc6 {[%emt 0:01:11]} 18. Qxe6+ {[%emt 0:09:19]} Qxe6 {[%emt 0:00:07]} 19. Nxe6 {[%emt 0:00:17]} Rfc8 {[%emt 0:06:34]} 20. Nxg7 {[%emt 0:06:58]} Kxg7 {[%emt 0:00:02]} 21. d5 {[%emt 0:01:09]} Nd8 {[%emt 0:00:11]} 22. Rxe7+ {[%emt 0:00:44]} Nf7 {[%emt 0:00:02]} 23. Bc5 {[%emt 0:13:45]} Rab8 {[%emt 0:00:10]} 24. a5 {[%emt 0:03:10]} Rd8 {[%emt 0:05:12]} 25. Rxc7 {[%emt 0:05:38]} Rxd5 {[%emt 0:11:26]} 26. Re1 {[%emt 0:02:31]} Kg8 {[%emt 0:02:06]} 27. Ree7 {[%emt 0:01:17]} Rf5 {[%emt 0:00:08]} 28. h4 {[%emt 0:07:27]} Rd8 {[%emt 0:09:18]} 29. Be3 {[%emt 0:26:26]} h5 {[%emt 0:05:51]} 30. Re6 {[%emt 0:01:35]} Rd6 {[%emt 0:00:17]} 31. Re8+ {[%emt 0:01:10]} Kg7 {[%emt 0:00:58]} 32. Bd4+ {[%emt 0:00:34]} Rxd4 {[%emt 0:00:16]} 33. cxd4 {[%emt 0:00:04]} Rf6 {[%emt 0:01:03]} 34. Rb8 {[%emt 0:01:17]} 1-0

[Event "POL-chT 1 Liga 2019"]
[Site "Dzwirzyno"]
[Date "2019.09.14"]
[Round "8.17"]
[White "Bartel, Michal"]
[Black "Kucza, Karol"]
[Result "1-0"]
[ECO "C65"]
[WhiteElo "2291"]
[BlackElo "2280"]
[Annotator "NA"]
[PlyCount "109"]
[EventDate "2019.09.07"]
[EventType "team-tourn"]
[EventCountry "POL"]
[SourceTitle "playchess.com"]
[Source "ChessBase"]
[SourceQuality "1"]
[TimeControl "40/5400+30:1800+30"]

1. e4 {[%emt 0:00:00]} e5 {[%emt 0:00:00]} 2. Nf3 {[%emt 0:00:02]} Nc6 {[%emt 0:00:13]} 3. Bb5 {[%emt 0:00:34]} Nf6 {[%emt 0:00:05]} 4. d3 {[%emt 0:00:10]} Bc5 {[%emt 0:00:08]} 5. c3 {[%emt 0:00:32]} O-O {[%emt 0:06:02]} 6. O-O {[%emt 0:09:12]} Re8 {[%emt 0:01:58]} 7. Nbd2 {[%emt 0:12:00]} Bf8 {[%emt 0:01:27]} 8. Re1 {[%emt 0:01:47]} a6 {[%emt 0:01:44]} 9. Ba4 {[%emt 0:04:36]} d6 {[%emt 0:02:07]} 10. h3 {[%emt 0:04:18]} h6 {[%emt 0:02:22]} 11. Nf1 {[%emt 0:02:39]} b5 {[%emt 0:01:35]} 12. Bc2 {[%emt 0:01:59]} Bb7 {[%emt 0:07:29]} 13. Ng3 {[%emt 0:02:19]} Ne7 {[%emt 0:02:03]} 14. Nh4 {[%emt 0:01:33]} c5 {[%emt 0:02:47]} 15. Qf3 {[%emt 0:02:18]} Ng6 {[%emt 0:02:15]} 16. Nhf5 {[%emt 0:07:46]} d5 {[%emt 0:04:04]} 17. h4 {[%emt 0:02:15]} Re6 {[%emt 0:03:28]} 18. Be3 {[%emt 0:05:08]} Rc8 {[%emt 0:08:54]} 19. Rad1 {[%emt 0:07:03]} Ne7 {[%emt 0:13:51]} 20. Bb1 {[%emt 0:03:15]} Nxf5 {[%emt 0:04:43]} 21. Nxf5 {[%emt 0:00:37]} d4 {[%emt 0:01:52]} 22. cxd4 {[%emt 0:03:37]} cxd4 {[%emt 0:01:13]} 23. Bd2 {[%emt 0:00:04]} h5 {[%emt 0:03:49]} 24. a3 {[%emt 0:03:33]} g6 {[%emt 0:00:16]} 25. Ba2 {[%emt 0:01:06]} gxf5 {[%emt 0:01:56]} 26. Bxe6 {[%emt 0:01:31]} fxe6 {[%emt 0:00:22]} 27. Qg3+ {[%emt 0:00:07]} Kf7 {[%emt 0:04:35]} 28. exf5 {[%emt 0:00:44]} exf5 {[%emt 0:00:13]} 29. Qxe5 {[%emt 0:01:17]} Qd5 {[%emt 0:09:29]} 30. Qxd5+ {[%emt 0:00:33]} Bxd5 {[%emt 0:00:06]} 31. Rc1 {[%emt 0:00:17]} Rxc1 {[%emt 0:00:15]} 32. Rxc1 {[%emt 0:00:10]} Nd7 {[%emt 0:00:30]} 33. Rc7 {[%emt 0:00:41]} Ke6 {[%emt 0:00:11]} 34. Ra7 {[%emt 0:00:23]} Bb3 {[%emt 0:08:05]} 35. Rxa6+ {[%emt 0:00:35]} Kd5 {[%emt 0:00:05]} 36. Rg6 {[%emt 0:04:49]} Bc2 {[%emt 0:00:48]} 37. Rg5 {[%emt 0:00:05]} Bxd3 {[%emt 0:00:06]} 38. Rxh5 {[%emt 0:00:04]} Kc4 {[%emt 0:05:50]} 39. Rh8 {[%emt 0:00:54]} Kb3 {[%emt 0:00:14]} 40. h5 {[%emt 0:00:00]} Kxb2 {[%emt 0:00:00]} 41. h6 {[%emt 0:02:23]} Bxa3 {[%emt 0:11:23]} 42. h7 {[%emt 0:10:22]} Nf6 {[%emt 0:00:08]} 43. Bc1+ {[%emt 0:00:12]} Kb3 {[%emt 0:02:07]} 44. Bxa3 {[%emt 0:00:08]} Nxh7 {[%emt 0:00:04]} 45. Rxh7 {[%emt 0:00:06]} Kxa3 {[%emt 0:00:06]} 46. Rh3 {[%emt 0:00:03]} Kb3 {[%emt 0:01:58]} 47. Rxd3+ {[%emt 0:00:04]} Kc4 {[%emt 0:00:05]} 48. Rf3 {[%emt 0:02:14]} b4 {[%emt 0:00:54]} 49. Rxf5 {[%emt 0:01:56]} b3 {[%emt 0:00:30]} 50. Rf8 {[%emt 0:00:12]} Kd3 {[%emt 0:02:21]} 51. Kf1 {[%emt 0:03:37]} Kd2 {[%emt 0:00:28]} 52. Rb8 {[%emt 0:00:09]} Kc2 {[%emt 0:00:07]} 53. Ke1 {[%emt 0:00:10]} b2 {[%emt 0:00:48]} 54. Rxb2+ {[%emt 0:00:09]} Kxb2 {[%emt 0:00:03]} 55. Kd2 {[%emt 0:00:04]} 1-0

[Event "POL-chT 1 Liga 2019"]
[Site "Dzwirzyno"]
[Date "2019.09.14"]
[Round "8.18"]
[White "Kantane, Anna"]
[Black "Kulon, Klaudia"]
[Result "1/2-1/2"]
[ECO "C85"]
[WhiteElo "2273"]
[BlackElo "2339"]
[Annotator "NA"]
[PlyCount "23"]
[EventDate "2019.09.07"]
[EventType "team-tourn"]
[EventCountry "POL"]
[SourceTitle "playchess.com"]
[Source "ChessBase"]
[SourceQuality "1"]
[TimeControl "40/5400+30:1800+30"]

1. e4 {[%emt 0:02:47]} e5 {[%emt 0:00:00]} 2. Nf3 {[%emt 0:00:07]} Nc6 {[%emt 0:00:00]} 3. Bb5 {[%emt 0:00:08]} a6 {[%emt 0:00:00]} 4. Ba4 {[%emt 0:00:23]} Nf6 {[%emt 0:00:00]} 5. O-O {[%emt 0:00:41]} Be7 {[%emt 0:00:00]} 6. Bxc6 {[%emt 0:05:16]} dxc6 {[%emt 0:00:00]} 7. d3 {[%emt 0:00:09]} Nd7 {[%emt 0:00:29]} 8. Nbd2 {[%emt 0:00:34]} c5 {[%emt 0:00:49]} 9. Nc4 {[%emt 0:00:13]} f6 {[%emt 0:00:21]} 10. a4 {[%emt 0:09:03]} Nb8 {[%emt 0:02:48]} 11. Nh4 {[%emt 0:08:30]} Be6 {[%emt 0:03:14]} 12. Nf5 {[%emt 0:02:23]} 1/2-1/2

[Event "POL-chT 1 Liga 2019"]
[Site "Dzwirzyno"]
[Date "2019.09.14"]
[Round "8.19"]
[White "Szwed, Jacek"]
[Black "Sopur, Lech"]
[Result "1-0"]
[ECO "B34"]
[WhiteElo "2370"]
[BlackElo "2417"]
[Annotator "NA"]
[PlyCount "71"]
[EventDate "2019.09.07"]
[EventType "team-tourn"]
[EventCountry "POL"]
[SourceTitle "playchess.com"]
[Source "ChessBase"]
[SourceQuality "1"]
[TimeControl "40/5400+30:1800+30"]

1. e4 {[%emt 0:01:35]} c5 {[%emt 0:01:05]} 2. Nc3 {[%emt 0:00:24]} Nc6 {[%emt 0:00:10]} 3. Nge2 {[%emt 0:00:08]} g6 {[%emt 0:01:12]} 4. d4 {[%emt 0:00:43]} cxd4 {[%emt 0:00:44]} 5. Nxd4 {[%emt 0:00:04]} Bg7 {[%emt 0:00:08]} 6. Nde2 {[%emt 0:00:26]} Nf6 {[%emt 0:00:55]} 7. g3 {[%emt 0:00:36]} b5 {[%emt 0:20:57]} 8. Bg2 {[%emt 0:02:21]} b4 {[%emt 0:00:40]} 9. Nd5 {[%emt 0:00:25]} Bb7 {[%emt 0:01:04]} 10. a3 {[%emt 0:06:18]} bxa3 {[%emt 0:06:44]} 11. Rxa3 {[%emt 0:00:12]} O-O {[%emt 0:00:30]} 12. O-O {[%emt 0:02:13]} Nxd5 {[%emt 0:19:17]} 13. exd5 {[%emt 0:00:01]} Ne5 {[%emt 0:00:08]} 14. b3 {[%emt 0:01:58]} a5 {[%emt 0:05:11]} 15. Ra4 {[%emt 0:21:09]} d6 {[%emt 0:04:56]} 16. Be3 {[%emt 0:23:29]} Qc7 {[%emt 0:07:11]} 17. Bd4 {[%emt 0:04:21]} Rfc8 {[%emt 0:06:53]} 18. c4 {[%emt 0:00:19]} Rcb8 {[%emt 0:03:12]} 19. Qa1 {[%emt 0:10:36]} Bf6 {[%emt 0:00:10]} 20. Bc3 {[%emt 0:11:21]} Qb6 {[%emt 0:02:43]} 21. Nd4 {[%emt 0:05:12]} Nd3 {[%emt 0:04:03]} 22. Nb5 {[%emt 0:01:38]} Bxc3 {[%emt 0:02:04]} 23. Qxc3 {[%emt 0:00:01]} Nc5 {[%emt 0:00:07]} 24. Ra2 {[%emt 0:01:19]} a4 {[%emt 0:05:51]} 25. b4 {[%emt 0:00:35]} Nd7 {[%emt 0:00:04]} 26. Nd4 {[%emt 0:03:28]} Ne5 {[%emt 0:01:18]} 27. c5 {[%emt 0:00:27]} dxc5 {[%emt 0:00:27]} 28. bxc5 {[%emt 0:00:01]} Qa5 {[%emt 0:01:41]} 29. Qxa5 {[%emt 0:01:49]} Rxa5 {[%emt 0:00:05]} 30. Rb1 {[%emt 0:00:27]} Rxc5 {[%emt 0:00:34]} 31. Nc6 {[%emt 0:00:21]} Re8 {[%emt 0:01:53]} 32. Rxb7 {[%emt 0:00:50]} Rc1+ {[%emt 0:00:23]} 33. Bf1 {[%emt 0:00:01]} Nxc6 {[%emt 0:00:25]} 34. dxc6 {[%emt 0:00:02]} Rxc6 {[%emt 0:00:06]} 35. Rxa4 {[%emt 0:00:20]} Rf6 {[%emt 0:00:07]} 36. Bb5 {[%emt 0:01:36]} 1-0

[Event "POL-chT 1 Liga 2019"]
[Site "Dzwirzyno"]
[Date "2019.09.14"]
[Round "8.20"]
[White "Flis, Pawel"]
[Black "Zylka, Stanislaw"]
[Result "0-1"]
[ECO "B40"]
[WhiteElo "1897"]
[BlackElo "2338"]
[Annotator "NA"]
[PlyCount "58"]
[EventDate "2019.09.07"]
[EventType "team-tourn"]
[EventCountry "POL"]
[SourceTitle "playchess.com"]
[Source "ChessBase"]
[SourceQuality "1"]
[TimeControl "40/5400+30:1800+30"]

1. e4 {[%emt 0:00:00]} c5 {[%emt 0:00:00]} 2. Nf3 {[%emt 0:00:00]} e6 {[%emt 0:00:25]} 3. d3 {[%emt 0:00:05]} Nc6 {[%emt 0:00:17]} 4. g3 {[%emt 0:00:06]} g6 {[%emt 0:01:11]} 5. Bg2 {[%emt 0:00:12]} Bg7 {[%emt 0:00:06]} 6. O-O {[%emt 0:00:18]} Nge7 {[%emt 0:00:21]} 7. c3 {[%emt 0:00:54]} O-O {[%emt 0:00:31]} 8. Be3 {[%emt 0:00:28]} d6 {[%emt 0:00:10]} 9. d4 {[%emt 0:00:31]} cxd4 {[%emt 0:00:42]} 10. cxd4 {[%emt 0:01:52]} d5 {[%emt 0:01:18]} 11. e5 {[%emt 0:05:54]} Nf5 {[%emt 0:00:55]} 12. Qd2 {[%emt 0:08:22]} Bd7 {[%emt 0:01:48]} 13. Nc3 {[%emt 0:00:27]} f6 {[%emt 0:03:38]} 14. exf6 {[%emt 0:10:05]} Qxf6 {[%emt 0:00:45]} 15. Ne2 {[%emt 0:02:07]} Rac8 {[%emt 0:02:40]} 16. Rac1 {[%emt 0:01:43]} h6 {[%emt 0:02:27]} 17. h4 {[%emt 0:02:49]} Kh7 {[%emt 0:02:30]} 18. Rfd1 {[%emt 0:03:44]} Qe7 {[%emt 0:26:29]} 19. a3 {[%emt 0:07:12]} Nd6 {[%emt 0:01:05]} 20. Qd3 {[%emt 0:13:59]} Rf5 {[%emt 0:21:12]} 21. Nd2 {[%emt 0:14:59]} e5 {[%emt 0:03:01]} 22. dxe5 {[%emt 0:03:42]} Nxe5 {[%emt 0:00:06]} 23. Qb3 {[%emt 0:06:07]} Ng4 {[%emt 0:02:00]} 24. Rxc8 {[%emt 0:05:11]} Bxc8 {[%emt 0:00:41]} 25. Bxd5 {[%emt 0:04:31]} Nxe3 {[%emt 0:03:36]} 26. fxe3 {[%emt 0:00:10]} Rxd5 {[%emt 0:03:42]} 27. Qxd5 {[%emt 0:00:38]} Qxe3+ {[%emt 0:00:08]} 28. Kf1 {[%emt 0:01:29]} Bg4 {[%emt 0:01:14]} 29. Nf3 {[%emt 0:02:06]} Ne4 {[%emt 0:00:59]} 0-1

[Event "POL-chT 1 Liga 2019"]
[Site "Dzwirzyno"]
[Date "2019.09.14"]
[Round "8.21"]
[White "Nowak, Mikolaj"]
[Black "Szmacinski, Slawomir"]
[Result "1-0"]
[ECO "B50"]
[WhiteElo "2262"]
[BlackElo "1848"]
[Annotator "NA"]
[PlyCount "105"]
[EventDate "2019.09.07"]
[EventType "team-tourn"]
[EventCountry "POL"]
[SourceTitle "playchess.com"]
[Source "ChessBase"]
[SourceQuality "1"]
[TimeControl "40/5400+30:1800+30"]

1. e4 {[%emt 0:00:00]} c5 {[%emt 0:00:00]} 2. Nf3 {[%emt 0:00:00]} d6 {[%emt 0:00:00]} 3. c3 {[%emt 0:00:00]} Nf6 {[%emt 0:00:39]} 4. Bd3 {[%emt 0:00:00]} Nc6 {[%emt 0:02:57]} 5. O-O {[%emt 0:00:03]} a6 {[%emt 0:00:42]} 6. Bc2 {[%emt 0:00:11]} Bg4 {[%emt 0:00:53]} 7. h3 {[%emt 0:00:15]} Bh5 {[%emt 0:01:19]} 8. d3 {[%emt 0:00:36]} e6 {[%emt 0:02:06]} 9. Nbd2 {[%emt 0:00:31]} Be7 {[%emt 0:00:29]} 10. Re1 {[%emt 0:00:47]} O-O {[%emt 0:00:30]} 11. Nf1 {[%emt 0:00:22]} Rc8 {[%emt 0:07:22]} 12. g4 {[%emt 0:06:36]} Bg6 {[%emt 0:00:06]} 13. Ng3 {[%emt 0:00:08]} h6 {[%emt 0:13:36]} 14. Qe2 {[%emt 0:08:14]} Nh7 {[%emt 0:07:25]} 15. Kg2 {[%emt 0:06:39]} Re8 {[%emt 0:06:40]} 16. Nh2 {[%emt 0:04:02]} e5 {[%emt 0:01:34]} 17. f4 {[%emt 0:04:03]} exf4 {[%emt 0:02:37]} 18. Bxf4 {[%emt 0:00:04]} Bg5 {[%emt 0:01:43]} 19. Bxg5 Nxg5 {[%emt 0:03:25]} 20. Qf2 {[%emt 0:05:21]} Ne6 21. Nf5 {[%emt 0:03:59]} Bxf5 {[%emt 0:09:17]} 22. gxf5 {[%emt 0:01:10]} Qg5+ {[%emt 0:00:27]} 23. Kh1 {[%emt 0:01:16]} Nf4 {[%emt 0:01:09]} 24. h4 {[%emt 0:01:22]} Nh3 {[%emt 0:04:28]} 25. hxg5 {[%emt 0:00:29]} Nxf2+ {[%emt 0:00:04]} 26. Kg2 {[%emt 0:00:06]} Nxd3 {[%emt 0:00:50]} 27. Bxd3 {[%emt 0:00:03]} Ne5 {[%emt 0:00:07]} 28. Rad1 {[%emt 0:00:40]} hxg5 {[%emt 0:06:29]} 29. Nf3 {[%emt 0:00:12]} Ng4 {[%emt 0:00:14]} 30. Kg3 {[%emt 0:01:06]} Nf6 {[%emt 0:00:50]} 31. Nxg5 {[%emt 0:00:17]} b5 {[%emt 0:00:03]} 32. a4 c4 {[%emt 0:00:22]} 33. Bc2 {[%emt 0:00:42]} Rc6 {[%emt 0:01:59]} 34. axb5 {[%emt 0:00:03]} axb5 {[%emt 0:00:06]} 35. Rd2 {[%emt 0:00:35]} Rb8 {[%emt 0:01:41]} 36. Red1 {[%emt 0:00:31]} Ne8 {[%emt 0:00:16]} 37. Kf4 {[%emt 0:01:49]} Kf8 {[%emt 0:01:59]} 38. Nf3 {[%emt 0:00:13]} Rc5 {[%emt 0:07:13]} 39. Rd5 {[%emt 0:00:22]} Rc7 {[%emt 0:02:48]} 40. e5 {[%emt 0:00:00]} dxe5+ {[%emt 0:00:00]} 41. Nxe5 {[%emt 0:00:21]} Rbb7 {[%emt 0:04:19]} 42. Be4 {[%emt 0:01:20]} Ra7 {[%emt 0:02:19]} 43. Rxb5 {[%emt 0:00:19]} g5+ {[%emt 0:03:51]} 44. fxg6 {[%emt 0:00:13]} fxg6 {[%emt 0:00:33]} 45. Nxg6+ {[%emt 0:00:11]} Kf7 {[%emt 0:01:24]} 46. Ne5+ {[%emt 0:00:06]} Kf8 {[%emt 0:01:28]} 47. Rb8 {[%emt 0:00:11]} Ra6 {[%emt 0:02:20]} 48. Rdd8 {[%emt 0:00:24]} Re6 {[%emt 0:01:15]} 49. Bg6 {[%emt 0:00:15]} Rce7 {[%emt 0:01:22]} 50. Rxe8+ {[%emt 0:00:08]} Rxe8 {[%emt 0:00:14]} 51. Rxe8+ {[%emt 0:00:01]} Rxe8 {[%emt 0:00:09]} 52. Bxe8 {[%emt 0:00:05]} Kxe8 {[%emt 0:00:05]} 53. Ke4 1-0

[Event "POL-chT 1 Liga 2019"]
[Site "Dzwirzyno"]
[Date "2019.09.14"]
[Round "8.22"]
[White "Redlich, Bogdan"]
[Black "Tomaszewski, Kacper"]
[Result "0-1"]
[ECO "A89"]
[WhiteElo "1600"]
[BlackElo "2363"]
[Annotator "NA"]
[PlyCount "79"]
[EventDate "2019.09.07"]
[EventType "team-tourn"]
[EventCountry "POL"]
[SourceTitle "playchess.com"]
[Source "ChessBase"]
[SourceQuality "1"]
[TimeControl "40/5400+30:1800+30"]

1. d4 {[%emt 0:00:00]} g6 {[%emt 0:00:00]} 2. Nf3 {[%emt 0:00:22]} Bg7 {[%emt 0:00:00]} 3. c4 {[%emt 0:01:48]} f5 {[%emt 0:00:00]} 4. g3 {[%emt 0:03:44]} Nf6 {[%emt 0:01:57]} 5. Bg2 {[%emt 0:01:16]} O-O {[%emt 0:00:13]} 6. O-O {[%emt 0:00:35]} d6 {[%emt 0:00:05]} 7. Nc3 {[%emt 0:02:29]} Nc6 {[%emt 0:00:07]} 8. b3 {[%emt 0:19:00]} e5 {[%emt 0:00:07]} 9. dxe5 {[%emt 0:02:14]} dxe5 {[%emt 0:00:06]} 10. Ba3 {[%emt 0:01:14]} Re8 {[%emt 0:00:05]} 11. e4 {[%emt 0:15:51]} fxe4 {[%emt 0:17:58]} 12. Ng5 {[%emt 0:05:37]} Qxd1 {[%emt 0:00:29]} 13. Raxd1 {[%emt 0:13:09]} Bg4 {[%emt 0:00:09]} 14. f3 {[%emt 0:03:18]} exf3 {[%emt 0:00:25]} 15. Bxf3 {[%emt 0:00:22]} Bxf3 {[%emt 0:00:22]} 16. Nxf3 {[%emt 0:03:15]} e4 {[%emt 0:01:30]} 17. Ng5 {[%emt 0:04:05]} h6 {[%emt 0:02:25]} 18. Nd5 {[%emt 0:02:10]} Nxd5 {[%emt 0:01:13]} 19. cxd5 {[%emt 0:00:18]} Nd4 {[%emt 0:00:57]} 20. Ne6 {[%emt 0:01:44]} Nxe6 {[%emt 0:02:53]} 21. dxe6 {[%emt 0:00:10]} Rxe6 {[%emt 0:00:45]} 22. Rd7 {[%emt 0:00:25]} e3 {[%emt 0:01:10]} 23. Rff7 {[%emt 0:02:59]} Bc3 {[%emt 0:00:50]} 24. Rde7 {[%emt 0:10:16]} Re8 {[%emt 0:00:47]} 25. Rf8+ {[%emt 0:00:14]} Kxf8 {[%emt 0:00:42]} 26. Rxe6+ {[%emt 0:00:17]} Kf7 {[%emt 0:00:06]} 27. Rxe8 {[%emt 0:00:08]} Kxe8 {[%emt 0:00:06]} 28. Kf1 {[%emt 0:00:03]} Bd4 {[%emt 0:00:54]} 29. Ke2 {[%emt 0:00:06]} Kd7 {[%emt 0:00:21]} 30. Bc1 {[%emt 0:00:14]} Ke6 {[%emt 0:00:15]} 31. Bxe3 {[%emt 0:00:07]} Bxe3 {[%emt 0:00:06]} 32. Kxe3 {[%emt 0:00:07]} Ke5 {[%emt 0:00:20]} 33. h3 {[%emt 0:00:25]} c5 {[%emt 0:00:47]} 34. Kd3 {[%emt 0:00:25]} Kd5 {[%emt 0:00:11]} 35. Ke3 {[%emt 0:00:29]} b5 {[%emt 0:00:09]} 36. Kd3 {[%emt 0:00:10]} c4+ {[%emt 0:00:50]} 37. bxc4+ {[%emt 0:00:40]} bxc4+ {[%emt 0:00:05]} 38. Kc3 {[%emt 0:00:03]} Kc5 {[%emt 0:00:05]} 39. g4 {[%emt 0:00:12]} g5 {[%emt 0:00:05]} 40. a3 {[%emt 0:00:00]} 0-1

[Event "POL-chT 1 Liga 2019"]
[Site "Dzwirzyno"]
[Date "2019.09.14"]
[Round "8.23"]
[White "Wolynski, Krzysztof"]
[Black "Kelm, Robert"]
[Result "1-0"]
[ECO "C00"]
[WhiteElo "2063"]
[BlackElo "1585"]
[Annotator "NA"]
[PlyCount "66"]
[EventDate "2019.09.07"]
[EventType "team-tourn"]
[EventCountry "POL"]
[SourceTitle "playchess.com"]
[Source "ChessBase"]
[SourceQuality "1"]
[TimeControl "40/5400+30:1800+30"]

1. e4 {[%emt 0:00:00]} e6 {[%emt 0:00:06]} 2. Qe2 {[%emt 0:06:09]} Nc6 {[%emt 0:00:08]} 3. c3 {[%emt 0:05:22]} e5 {[%emt 0:00:37]} 4. f4 {[%emt 0:00:09]} d6 {[%emt 0:04:29]} 5. Nf3 {[%emt 0:00:34]} exf4 {[%emt 0:09:23]} 6. d4 {[%emt 0:00:06]} g5 {[%emt 0:00:05]} 7. Qb5 {[%emt 0:06:16]} g4 {[%emt 0:08:21]} 8. Ng1 {[%emt 0:00:35]} a6 {[%emt 0:10:12]} 9. Qd3 {[%emt 0:03:12]} Qh4+ {[%emt 0:05:28]} 10. Kd1 {[%emt 0:01:47]} Bh6 {[%emt 0:00:50]} 11. Ne2 {[%emt 0:08:48]} Qf6 {[%emt 0:01:19]} 12. h3 {[%emt 0:29:57]} Nge7 {[%emt 0:15:33]} 13. hxg4 {[%emt 0:00:52]} Bg5 {[%emt 0:02:58]} 14. Nd2 {[%emt 0:01:26]} Bxg4 {[%emt 0:03:17]} 15. Nf3 {[%emt 0:00:23]} h6 {[%emt 0:00:05]} 16. Bd2 {[%emt 0:13:20]} O-O-O {[%emt 0:04:50]} 17. Nh2 {[%emt 0:01:57]} Bh5 {[%emt 0:00:25]} 18. Qh3+ {[%emt 0:00:08]} Qe6 {[%emt 0:00:31]} 19. Qxh5 {[%emt 0:03:07]} Qxe4 {[%emt 0:00:29]} 20. Qf3 {[%emt 0:02:12]} Qxf3 {[%emt 0:00:02]} 21. Nxf3 {[%emt 0:01:15]} Ng6 {[%emt 0:00:03]} 22. Neg1 {[%emt 0:00:30]} Nce7 {[%emt 0:00:18]} 23. Bc4 {[%emt 0:01:46]} d5 {[%emt 0:00:17]} 24. Bd3 {[%emt 0:00:06]} Kd7 {[%emt 0:02:15]} 25. Kc2 {[%emt 0:00:15]} Ke6 {[%emt 0:00:06]} 26. Nh3 {[%emt 0:00:42]} Kf6 {[%emt 0:00:17]} 27. Nf2 {[%emt 0:03:14]} Rhe8 {[%emt 0:01:13]} 28. Ng4+ {[%emt 0:00:20]} Kg7 {[%emt 0:00:03]} 29. Nge5 {[%emt 0:00:31]} Nf8 {[%emt 0:01:47]} 30. Raf1 {[%emt 0:01:04]} f6 {[%emt 0:00:09]} 31. Ng4 {[%emt 0:00:07]} Nfg6 {[%emt 0:01:38]} 32. Nf2 {[%emt 0:00:57]} Nh8 {[%emt 0:00:05]} 33. Nh3 {[%emt 0:00:18]} Nf7 {[%emt 0:00:08]} 1-0

[Event "POL-chT 1 Liga 2019"]
[Site "Dzwirzyno"]
[Date "2019.09.14"]
[Round "8.24"]
[White "Miturova, Magdalena"]
[Black "Cieslak, Wiktoria"]
[Result "1/2-1/2"]
[ECO "A05"]
[WhiteElo "2219"]
[BlackElo "2063"]
[Annotator "NA"]
[PlyCount "62"]
[EventDate "2019.09.07"]
[EventType "team-tourn"]
[EventCountry "POL"]
[SourceTitle "playchess.com"]
[Source "ChessBase"]
[SourceQuality "1"]
[TimeControl "40/5400+30:1800+30"]

1. Nf3 {[%emt 0:00:00]} Nf6 {[%emt 0:00:00]} 2. g3 {[%emt 0:00:00]} b5 {[%emt 0:00:00]} 3. c3 {[%emt 0:09:08]} c5 {[%emt 0:04:10]} 4. d4 {[%emt 0:03:40]} e6 {[%emt 0:04:24]} 5. Qb3 {[%emt 0:07:56]} a6 {[%emt 0:01:16]} 6. a4 {[%emt 0:04:28]} c4 {[%emt 0:01:49]} 7. Qc2 {[%emt 0:02:02]} Bb7 {[%emt 0:02:43]} 8. Nbd2 {[%emt 0:01:23]} Be7 {[%emt 0:00:58]} 9. Bg2 {[%emt 0:01:27]} O-O {[%emt 0:00:59]} 10. O-O {[%emt 0:03:37]} d6 {[%emt 0:01:27]} 11. b3 {[%emt 0:06:55]} Qc7 {[%emt 0:10:26]} 12. bxc4 {[%emt 0:05:03]} bxc4 {[%emt 0:00:14]} 13. Ba3 {[%emt 0:00:44]} Nbd7 {[%emt 0:04:03]} 14. Rfb1 {[%emt 0:02:33]} Rab8 {[%emt 0:04:04]} 15. e4 {[%emt 0:07:14]} Rfe8 {[%emt 0:04:03]} 16. Rb2 {[%emt 0:05:44]} Bf8 {[%emt 0:02:33]} 17. Rab1 {[%emt 0:02:52]} Bxe4 {[%emt 0:15:29]} 18. Nxe4 {[%emt 0:00:53]} Nxe4 {[%emt 0:03:08]} 19. Ne1 {[%emt 0:09:55]} Nef6 {[%emt 0:02:17]} 20. Rb7 {[%emt 0:00:24]} Rxb7 {[%emt 0:00:27]} 21. Rxb7 {[%emt 0:00:03]} Qc8 {[%emt 0:03:07]} 22. Qb1 {[%emt 0:01:11]} d5 {[%emt 0:00:34]} 23. Bxf8 {[%emt 0:00:45]} Rxf8 {[%emt 0:00:08]} 24. Nc2 {[%emt 0:03:48]} Qc6 {[%emt 0:02:03]} 25. Qb4 {[%emt 0:01:03]} Ne8 {[%emt 0:01:35]} 26. Ra7 {[%emt 0:00:59]} Nc7 {[%emt 0:11:07]} 27. Qa5 {[%emt 0:01:28]} Rc8 {[%emt 0:01:53]} 28. Nb4 {[%emt 0:01:33]} Qb6 {[%emt 0:03:08]} 29. Qxb6 {[%emt 0:00:55]} Nxb6 {[%emt 0:00:03]} 30. Nxa6 {[%emt 0:02:22]} Nxa6 31. Rxa6 {[%emt 0:00:06]} Na8 {[%emt 0:00:56]} 1/2-1/2